fUSD/lending_fUSD_20260203
["ID","MTS","AMOUNT","RATE_DAILY","PERIOD"]
[404411744,1770117041293,-1503.0,0.00012238,2]
[404411745,1770117041302,-1503.0,0.00012238,2]
[404411746,1770117041311,-151.0,0.00012238,2]
[404411747,1770117041320,-1503.0,0.00012238,2]
[404411748,1770117041329,-151.0,0.00012238,2]
[404411749,1770117041338,-1503.0,0.00012238,2]
[404411750,1770117041347,-151.0,0.00012238,2]
[404411751,1770117041356,-1503.0,0.00012238,2]
[404411752,1770117041364,-151.0,0.00012238,2]
[404411753,1770117041373,-1503.0,0.00012238,2]
[404411754,1770117041383,-151.0,0.00012238,2]
[404411755,1770117041392,-1503.0,0.00012238,2]
[404411756,1770117041401,-151.0,0.00012238,2]
[404411757,1770117041410,-1503.0,0.00012238,2]
[404411758,1770117041419,-151.0,0.00012238,2]
[404411759,1770117041428,-1503.0,0.00012238,2]
[404411760,1770117041437,-151.0,0.00012238,2]
[404411761,1770117041446,-1503.0,0.00012238,2]
[404411762,1770117041455,-151.0,0.00012238,2]
[404411763,1770117041464,-1503.0,0.00012238,2]
[404411764,1770117041473,-151.0,0.00012238,2]
[404411765,1770117041482,-1503.0,0.00012238,2]
[404411766,1770117041491,-151.0,0.00012238,2]
[404411767,1770117041500,-1503.0,0.00012238,2]
[404411768,1770117041509,-151.0,0.00012238,2]
[404411769,1770117041517,-1503.0,0.00012238,2]
[404411770,1770117041526,-151.0,0.00012238,2]
[404411771,1770117041535,-1503.0,0.00012238,2]
[404411772,1770117041544,-151.0,0.00012238,2]
[404411773,1770117041553,-151.0,0.00012238,2]
[404411774,1770117041563,-1503.0,0.00012238,2]
[404411775,1770117041571,-151.0,0.00012238,2]
[404411776,1770117041580,-1503.0,0.00012238,2]
[404411777,1770117041589,-1503.0,0.00012238,2]
[404411778,1770117041599,-1503.0,0.00012238,2]
[404411779,1770117041609,-151.0,0.00012238,2]
[404411780,1770117041617,-1503.0,0.00012238,2]
[404411781,1770117041626,-151.0,0.00012238,2]
[404411782,1770117041635,-1503.0,0.00012238,2]
[404411783,1770117041644,-151.0,0.00012238,2]
[404411784,1770117041653,-317.02,0.00012338,2]
[404411785,1770117041662,-151.0,0.00012497,2]
[404411786,1770117041671,-151.0,0.00012497,2]
[404411787,1770117041679,-239.0,0.00012603,2]
[404411788,1770117041689,-500.0,0.0001263,2]
[404411789,1770117041698,-6453.0,0.00012694,2]
[404411790,1770117041707,-317.02,0.00012812,2]
[404411791,1770117041716,-7193.7005396,0.00012837,2]
[404411792,1770117041725,-267.46801116,0.00012837,2]
[404411793,1770117041734,-1968.02091488,0.00012892,2]
[404411794,1770117041743,-1000.0,0.00012999,2]
[404411795,1770117041752,-150.01369725,0.00013032,2]
[404411796,1770117041761,-2662.46744209,0.00013607,2]
[404411797,1770117041770,-500.0,0.00013698,2]
[404411798,1770117041779,-500.0,0.00013698,2]
[404411799,1770117041788,-500.0,0.00013698,2]
[404411800,1770117041797,-500.0,0.00013698,2]
[404411801,1770117041806,-500.0,0.00013698,2]
[404411802,1770117041814,-500.0,0.00013698,2]
[404411803,1770117041824,-500.0,0.00013698,2]
[404411804,1770117041833,-500.0,0.00013698,2]
[404411805,1770117041842,-500.0,0.00013698,2]
[404411806,1770117041851,-222.83714718,0.00013698,2]
[404411807,1770117041860,-500.0,0.00013698,2]
[404411808,1770117041868,-500.0,0.00013698,2]
[404411809,1770117041877,-500.0,0.00013698,2]
[404411810,1770117041887,-500.0,0.00013698,2]
[404411811,1770117041896,-500.0,0.00013698,2]
[404411812,1770117041905,-500.0,0.00013698,2]
[404411813,1770117041917,-558.31479011,0.00013698,2]
[404411814,1770117041927,-500.0,0.00013698,2]
[404411815,1770117041937,-500.0,0.00013698,2]
[404411816,1770117041947,-500.0,0.00013698,2]
[404411817,1770117041958,-500.0,0.00013698,2]
[404411818,1770117041968,-340.45778603,0.00013698,2]
[404411819,1770117041977,-500.0,0.00013698,2]
[404411820,1770117041986,-509.06540724,0.00013698,2]
[404411821,1770117041995,-500.0,0.00013698,2]
[404411822,1770117042005,-500.0,0.00013698,2]
[404411823,1770117042015,-439.60873549,0.00013698,2]
[404411824,1770117042024,-500.0,0.00013698,2]
[404411825,1770117042035,-500.0,0.00013698,2]
[404411826,1770117042044,-500.0,0.00013698,2]
[404411827,1770117042053,-500.0,0.00013698,2]
[404411828,1770117042062,-545.58231824,0.00013698,2]
[404411829,1770117042071,-552.61203619,0.00013698,2]
[404411830,1770117042080,-500.0,0.00013698,2]
[404411831,1770117042089,-500.0,0.00013698,2]
[404411832,1770117042099,-500.0,0.00013698,2]
[404411833,1770117042109,-500.0,0.00013698,2]
[404411834,1770117042119,-500.0,0.00013698,2]
[404411835,1770117042130,-500.0,0.00013698,2]
[404411836,1770117042140,-500.0,0.00013698,2]
[404411837,1770117042151,-500.0,0.00013698,2]
[404411838,1770117042160,-371.76186134,0.00013698,2]
[404411839,1770117042169,-452.02134495,0.00013698,2]
[404411840,1770117042179,-500.0,0.00013698,2]
[404411841,1770117042188,-500.0,0.00013698,2]
[404411842,1770117042197,-500.0,0.00013698,2]
[404411843,1770117042207,-438.97921379,0.00013698,2]
[404411844,1770117042216,-199.38200897,0.00013698,2]
[404411845,1770117042225,-7243.61,0.00013699,2]
[404411846,1770117042235,-9681.08,0.00013699,2]
[404411847,1770117042245,-500.0,0.00013699,2]
[404411848,1770117042255,-500.0,0.000137,2]
[404411849,1770117042264,-260.20893212,0.000137,2]
[404411850,1770117042273,-500.0,0.000137,2]
[404411851,1770117042282,-500.0,0.000137,2]
[404411852,1770117042291,-500.0,0.000137,2]
[404411853,1770117042300,-500.0,0.000137,2]
[404411854,1770117042310,-500.0,0.000137,2]
[404411855,1770117042320,-6253.0,0.00013963,2]
[404411856,1770117042330,-150.01369725,0.00014212,2]
[404411857,1770117042340,-160.0,0.00014228,2]
[404411858,1770117042349,-1000.0,0.00014248,2]
[404411859,1770117042359,-1000.0,0.00014248,2]
[404411860,1770117042368,-1001.21553048,0.00014248,2]
[404411861,1770117042377,-500.0,0.00014248,2]
[404411862,1770117042386,-18588.0,0.00014594,2]
[404411863,1770117042396,-495.7739334,0.00014796,2]
[404411864,1770117042406,-369.98194845,0.00014796,2]
[404411865,1770117042415,-500.0,0.00014959,2]
[404411866,1770117042425,-250.0,0.00015,2]
[404411867,1770117042435,-2662.46744209,0.00015038,2]
[404411868,1770117042445,-256.5,0.00015132,2]
[404411869,1770117042455,-1000.0,0.00015448,7]
[404411870,1770117042465,-1100.0,0.00015808,2]
[404411871,1770117042474,-209.40437684,0.00015849,2]
[404411872,1770117042483,-578.20924308,0.00015849,2]
[404411873,1770117042492,-174.61919141,0.00015849,2]
[404411874,1770117042501,-500.0,0.00015849,2]
[404411875,1770117042512,-500.0,0.00015849,2]
[404411876,1770117042522,-500.0,0.00015849,2]
[404411877,1770117042531,-500.0,0.00015849,2]
[404411878,1770117042541,-500.0,0.00015849,2]
[404411879,1770117042551,-500.0,0.00015849,2]
[404411880,1770117042560,-500.0,0.00015849,2]
[404411881,1770117042570,-500.0,0.00015849,2]
[404411882,1770117042578,-500.0,0.00015849,2]
[404411883,1770117042587,-500.0,0.00015849,2]
[404411884,1770117042597,-500.0,0.00015849,2]
[404411885,1770117042605,-322.6107,0.00015849,2]
[404411886,1770117042615,-721.12765535,0.00015849,2]
[404411887,1770117042636,-151.0,0.00015849,2]
[404411888,1770117042647,-156.587,0.00015849,2]
[404411889,1770117042657,-162.380719,0.00015849,2]
[404411890,1770117042666,-157.73690742,0.00015849,2]
[404411891,1770117042675,-209.40437684,0.00015849,2]
[404411892,1770117042685,-200.0,0.00015849,2]
[404411893,1770117042694,-500.0,0.00015872,2]
[404411894,1770117042703,-217.15233878,0.00015904,2]
[404411895,1770117042713,-225.18697532,0.00015959,2]
[404411896,1770117042722,-5000.0,0.0001596,2]
[404411897,1770117042731,-256.701042,0.00016,2]
[404411898,1770117042740,-233.51889341,0.00016014,2]
[404411899,1770117042749,-242.15909246,0.00016069,2]
[404411900,1770117042758,-1500.0,0.00016082,2]
[404411901,1770117042768,-9999.99,0.00016116,2]
[404411902,1770117042777,-251.11897888,0.00016124,2]
[404411903,1770117042786,-260.4103811,0.00016179,2]
[404411904,1770117042795,-270.0455652,0.00016234,2]
[404411905,1770117042805,-280.03725112,0.00016289,2]
[404411906,1770117042814,-290.39862941,0.00016344,2]
[404411907,1770117042823,-800.0,0.00016356,2]
[404411908,1770117042832,-3481.0,0.00016381,2]
[404411909,1770117042842,-616.0,0.00016381,2]
[404411910,1770117042852,-1410.0,0.00016381,2]
[404411911,1770117042862,-1335.0,0.00016381,2]
[404411912,1770117042871,-150.0,0.00016381,2]
[404411913,1770117042880,-1271.0,0.00016381,2]
[404411914,1770117042889,-917.0,0.00016381,2]
[404411915,1770117042898,-1205.0,0.00016381,2]
[404411916,1770117042907,-3253.0,0.00016381,2]
[404411917,1770117042916,-1316.0,0.00016381,2]
[404411918,1770117042926,-2471.026,0.00016381,2]
[404411919,1770117042935,-6580.0,0.00016381,2]
[404411920,1770117042945,-217.15233878,0.00016397,2]
[404411921,1770117042957,-181.08010149,0.00016397,2]
[404411922,1770117042967,-200.0,0.00016397,2]
[404411923,1770117042976,-301.1433787,0.00016399,2]
[404411924,1770117042986,-1084.09055279,0.0001642,2]
[404411925,1770117042996,-457.87,0.00016438,2]
[404411927,1770117043005,-457.87,0.00016438,3]
[404411929,1770117043016,-457.87,0.00016438,4]
[404411930,1770117043026,-457.87,0.00016438,5]
[404411931,1770117043036,-457.87,0.00016438,6]
[404411949,1770117043233,-457.87,0.00016438,7]
[404411950,1770117043269,-457.87,0.00016438,8]
[404411951,1770117043278,-457.87,0.00016438,9]
[404411952,1770117043287,-457.87,0.00016438,10]
[404411953,1770117043296,-457.87,0.00016438,11]
[404411954,1770117043305,-457.87,0.00016438,12]
[404411955,1770117043314,-457.87,0.00016438,13]
[404411956,1770117043323,-457.87,0.00016438,14]
[404411957,1770117043332,-457.87,0.00016438,15]
[404411958,1770117043341,-457.87,0.00016438,16]
[404411959,1770117043350,-457.87,0.00016438,17]
[404411960,1770117043359,-775.48,0.00016438,2]
[404411961,1770117043369,-500.0,0.00016438,2]
[404411962,1770117043378,-500.0,0.00016438,2]
[404411963,1770117043387,-500.0,0.00016438,2]
[404411964,1770117043396,-330.22332732,0.00016438,2]
[404411965,1770117043406,-1120.89671946,0.00016438,2]
[404411966,1770117043415,-1120.89671946,0.00016438,2]
[404411967,1770117043424,-1120.89671946,0.00016438,2]
[404411968,1770117043434,-1120.89671946,0.00016438,2]
[404411969,1770117043443,-1120.89671946,0.00016438,2]
[404411970,1770117043453,-1120.89671946,0.00016438,2]
[404411971,1770117043462,-1120.89671946,0.00016438,2]
[404411972,1770117043471,-1120.89671946,0.00016438,2]
[404411973,1770117043480,-1120.89671946,0.00016438,2]
[404411974,1770117043489,-1120.89671946,0.00016438,2]
[404411975,1770117043498,-1120.89671946,0.00016438,2]
[404411976,1770117043508,-1120.89671946,0.00016438,2]
[404411977,1770117043516,-1120.89671946,0.00016438,2]
[404411978,1770117043526,-1120.89671946,0.00016438,2]
[404411979,1770117043534,-1120.89671946,0.00016438,2]
[404411980,1770117043543,-1120.89671946,0.00016438,2]
[404411981,1770117043553,-1120.89671946,0.00016438,2]
[404411982,1770117043562,-1120.89671946,0.00016438,2]
[404411983,1770117043572,-1120.89671946,0.00016438,2]
[404411984,1770117043582,-1120.89671946,0.00016438,2]
[404411985,1770117043591,-1120.89671945,0.00016438,2]
[404411986,1770117043600,-1120.89671946,0.00016438,2]
[404411987,1770117043609,-1120.89671946,0.00016438,2]
[404411988,1770117043618,-1120.89671946,0.00016438,2]
[404411989,1770117043627,-1120.89671946,0.00016438,2]
[404411990,1770117043636,-1120.89671946,0.00016438,2]
[404411991,1770117043646,-1120.89671946,0.00016438,2]
[404411992,1770117043655,-1120.89671946,0.00016438,2]
[404411993,1770117043664,-1120.89671946,0.00016438,2]
[404411994,1770117043673,-1120.89671946,0.00016438,2]
[404411995,1770117043683,-1120.89671946,0.00016438,2]
[404411996,1770117043692,-1120.89671946,0.00016438,2]
[404411997,1770117043701,-1120.89671946,0.00016438,2]
[404411998,1770117043710,-1120.89671946,0.00016438,2]
[404411999,1770117043719,-1120.89671946,0.00016438,2]
[404412000,1770117043728,-1120.89671946,0.00016438,2]
[404412001,1770117043737,-1120.89671946,0.00016438,2]
[404412002,1770117043746,-1120.89671946,0.00016438,2]
[404412003,1770117043755,-1120.89671946,0.00016438,2]
[404412004,1770117043765,-1120.89671946,0.00016438,2]
[404412005,1770117043774,-1120.89671946,0.00016438,2]
[404412006,1770117043783,-1120.89671946,0.00016438,2]
[404412007,1770117043792,-1120.89671946,0.00016438,2]
[404412008,1770117043802,-1120.89671946,0.00016438,2]
[404412009,1770117043811,-1120.89671946,0.00016438,2]
[404412010,1770117043820,-1120.89671946,0.00016438,2]
[404412011,1770117043829,-1120.89671946,0.00016438,2]
[404412012,1770117043838,-1120.89671946,0.00016438,2]
[404412013,1770117043847,-1120.89671946,0.00016438,2]
[404412014,1770117043856,-1120.89671946,0.00016438,2]
[404412015,1770117043866,-1120.89671946,0.00016438,2]
[404412016,1770117043875,-1120.89671946,0.00016438,2]
[404412017,1770117043884,-1120.89671946,0.00016438,2]
[404412018,1770117043893,-1120.89671946,0.00016438,2]
[404412019,1770117043903,-1120.89671946,0.00016438,2]
[404412020,1770117043912,-1120.89671946,0.00016438,2]
[404412021,1770117043921,-1120.89671946,0.00016438,2]
[404412022,1770117043931,-1120.89671946,0.00016438,2]
[404412023,1770117043942,-1120.89671946,0.00016438,2]
[404412024,1770117043952,-1120.89671946,0.00016438,2]
[404412025,1770117043964,-1120.89671946,0.00016438,2]
[404412026,1770117043974,-1120.89671946,0.00016438,2]
[404412027,1770117043984,-1120.89671946,0.00016438,2]
[404412028,1770117043994,-1120.89671946,0.00016438,2]
[404412029,1770117044005,-1120.89671946,0.00016438,2]
[404412030,1770117044014,-1120.89671946,0.00016438,2]
[404412031,1770117044024,-1120.89671946,0.00016438,2]
[404412032,1770117044035,-5686.00335866,0.00016438,2]
[404412033,1770117044044,-5686.00335866,0.00016438,2]
[404412034,1770117044054,-5686.00335866,0.00016438,2]
[404412035,1770117044063,-5686.00335866,0.00016438,2]
[404412036,1770117044072,-5686.00335866,0.00016438,2]
[404412037,1770117044082,-5686.00335866,0.00016438,2]
[404412038,1770117044092,-5686.00335866,0.00016438,2]
[404412039,1770117044101,-5686.00335866,0.00016438,2]
[404412040,1770117044111,-5686.00335866,0.00016438,2]
[404412041,1770117044120,-5686.00335866,0.00016438,2]
[404412042,1770117044130,-5686.00335866,0.00016438,2]
[404412043,1770117044139,-5686.00335866,0.00016438,2]
[404412044,1770117044149,-5686.00335866,0.00016438,2]
[404412045,1770117044159,-5686.00335866,0.00016438,2]
[404412046,1770117044168,-5686.00335866,0.00016438,2]
[404412047,1770117044178,-5686.00335866,0.00016438,2]
[404412048,1770117044187,-5686.00335866,0.00016438,2]
[404412049,1770117044197,-5686.00335866,0.00016438,2]
[404412050,1770117044206,-5686.00335866,0.00016438,2]
[404412051,1770117044215,-5686.00335866,0.00016438,2]
[404412053,1770117044225,-5686.00335866,0.00016438,2]
[404412054,1770117044234,-5686.00335866,0.00016438,2]
[404412055,1770117044243,-200.0,0.00016438,2]
[404412056,1770117044251,-800.0,0.00016438,2]
[404412057,1770117044261,-500.0,0.00016438,2]
[404412058,1770117044270,-2662.46744209,0.00016469,2]
[404412059,1770117044279,-1500.0,0.000165,2]
[404412060,1770117044289,-256.5,0.00016566,2]
[404412061,1770117044298,-150.01369725,0.00016572,2]
[404412062,1770117044307,-30000.0,0.00016625,2]
[404412063,1770117044316,-457.87,0.0001683,18]
[404412064,1770117044325,-150.0,0.00016841,7]
[404412065,1770117044334,-447.236958,0.00016841,7]
[404412066,1770117044343,-744.473917,0.00016841,7]
[404412067,1770117044352,-1041.710876,0.00016841,7]
[404412068,1770117044361,-1338.947835,0.00016841,7]
[404412069,1770117044370,-1636.184793,0.00016841,7]
[404412070,1770117044379,-1933.421752,0.00016841,7]
[404412071,1770117044388,-2230.658711,0.00016841,7]
[404412072,1770117044397,-2527.89567,0.00016841,7]
[404412073,1770117044406,-2825.132628,0.00016841,7]
[404412074,1770117044415,-225.18697532,0.00016945,2]
[404412075,1770117044424,-187.78006525,0.00016945,2]
[404412076,1770117044434,-200.0,0.00016945,2]
[404412077,1770117044443,-5888.0,0.00016989,2]
[404412078,1770117044452,-500.0,0.00017,7]
[404412079,1770117044462,-500.0,0.00017,7]
[404412080,1770117044471,-500.0,0.00017,7]
[404412081,1770117044481,-500.0,0.00017,7]
[404412082,1770117044490,-500.0,0.00017,7]
[404412083,1770117044499,-500.0,0.00017,7]
[404412084,1770117044508,-500.0,0.00017,7]
[404412085,1770117044517,-500.0,0.00017,7]
[404412086,1770117044526,-500.0,0.00017,7]
[404412087,1770117044538,-500.0,0.00017,7]
[404412088,1770117044547,-500.0,0.00017,7]
[404412089,1770117044556,-500.0,0.00017,7]
[404412090,1770117044566,-500.0,0.00017,7]
[404412091,1770117044575,-500.0,0.00017,7]
[404412092,1770117044584,-500.0,0.00017,7]
[404412093,1770117044593,-500.0,0.00017,7]
[404412094,1770117044602,-500.0,0.00017,7]
[404412095,1770117044611,-500.0,0.00017,7]
[404412096,1770117044620,-500.0,0.00017,7]
[404412097,1770117044629,-500.0,0.00017,7]
[404412098,1770117044639,-500.0,0.00017,7]
[404412099,1770117044648,-500.0,0.00017,7]
[404412100,1770117044657,-500.0,0.00017,7]
[404412101,1770117044666,-500.0,0.00017,7]
[404412102,1770117044675,-500.0,0.00017,7]
[404412103,1770117044684,-500.0,0.00017,7]
[404412104,1770117044693,-500.0,0.00017,7]
[404412105,1770117044702,-500.0,0.00017,7]
[404412106,1770117044711,-500.0,0.00017,7]
[404412107,1770117044719,-500.0,0.00017,7]
[404412108,1770117044728,-500.0,0.00017,7]
[404412109,1770117044737,-500.0,0.00017,7]
[404412110,1770117044746,-500.0,0.00017,7]
[404412111,1770117044756,-500.0,0.00017,7]
[404412112,1770117044766,-500.0,0.00017,7]
[404412113,1770117044775,-500.0,0.00017,7]
[404412114,1770117044784,-500.0,0.00017,7]
[404412115,1770117044793,-500.0,0.00017,7]
[404412116,1770117044803,-500.0,0.00017,7]
[404412117,1770117044812,-500.0,0.00017,7]
[404412118,1770117044821,-500.0,0.00017,7]
[404412119,1770117044831,-500.0,0.00017,7]
[404412120,1770117044841,-500.0,0.00017,7]
[404412121,1770117044850,-500.0,0.00017,7]
[404412122,1770117044859,-500.0,0.00017,7]
[404412123,1770117044869,-500.0,0.00017,7]
[404412124,1770117044878,-500.0,0.00017,7]
[404412125,1770117044887,-500.0,0.00017,7]
[404412126,1770117044896,-500.0,0.00017,7]
[404412127,1770117044905,-500.0,0.00017,7]
[404412128,1770117044915,-500.0,0.00017,7]
[404412129,1770117044925,-500.0,0.00017,7]
[404412130,1770117044935,-500.0,0.00017,7]
[404412131,1770117044944,-500.0,0.00017,7]
[404412133,1770117044955,-500.0,0.00017,7]
[404412134,1770117044968,-500.0,0.00017,7]
[404412135,1770117044977,-160.0,0.00017,7]
[404412136,1770117044987,-500.0,0.00017,7]
[404412137,1770117044996,-500.0,0.00017,7]
[404412139,1770117045008,-500.0,0.00017,7]
[404412141,1770117045018,-500.0,0.00017,7]
[404412143,1770117045027,-500.0,0.00017,7]
[404412144,1770117045037,-500.0,0.00017,7]
[404412145,1770117045047,-500.0,0.00017,7]
[404412146,1770117045057,-500.0,0.00017,7]
[404412147,1770117045066,-500.0,0.00017,7]
[404412148,1770117045076,-500.0,0.00017,7]
[404412149,1770117045086,-500.0,0.00017,7]
[404412150,1770117045095,-500.0,0.00017,7]
[404412151,1770117045105,-500.0,0.00017,7]
[404412152,1770117045115,-500.0,0.00017,7]
[404412153,1770117045124,-500.0,0.00017,7]
[404412154,1770117045133,-500.0,0.00017,7]
[404412155,1770117045142,-500.0,0.00017,7]
[404412156,1770117045152,-500.0,0.00017,7]
[404412157,1770117045161,-500.0,0.00017,7]
[404412158,1770117045171,-500.0,0.00017,7]
[404412159,1770117045180,-500.0,0.00017,7]
[404412160,1770117045190,-500.0,0.00017,7]
[404412161,1770117045198,-404.8,0.00017,7]
[404412162,1770117045207,-500.0,0.00017,7]
[404412163,1770117045217,-500.0,0.00017,7]
[404412164,1770117045226,-500.0,0.00017,7]
[404412165,1770117045235,-500.0,0.00017,7]
[404412166,1770117045246,-500.0,0.00017,7]
[404412167,1770117045255,-500.0,0.00017,7]
[404412168,1770117045264,-500.0,0.00017,7]
[404412169,1770117045274,-500.0,0.00017,7]
[404412170,1770117045283,-500.0,0.00017,7]
[404412171,1770117045292,-500.0,0.00017,7]
[404412172,1770117045301,-500.0,0.00017,7]
[404412173,1770117045310,-500.0,0.00017,7]
[404412174,1770117045320,-500.0,0.00017,7]
[404412175,1770117045329,-500.0,0.00017,7]
[404412176,1770117045338,-500.0,0.00017,7]
[404412177,1770117045347,-500.0,0.00017,7]
[404412178,1770117045356,-500.0,0.00017,7]
[404412179,1770117045366,-500.0,0.00017,7]
[404412180,1770117045375,-500.0,0.00017,7]
[404412181,1770117045384,-500.0,0.00017,7]
[404412182,1770117045394,-500.0,0.00017,7]
[404412183,1770117045403,-500.0,0.00017,7]
[404412184,1770117045412,-500.0,0.00017,7]
[404412185,1770117045422,-500.0,0.00017,7]
[404412186,1770117045431,-166.51,0.00017,7]
[404412187,1770117045441,-500.0,0.00017,7]
[404412188,1770117045450,-500.0,0.00017,5]
[404412189,1770117045459,-500.0,0.00017,2]
[404412190,1770117045469,-500.0,0.00017,2]
[404412192,1770117045478,-500.0,0.00017,5]
[404412193,1770117045487,-300.0,0.00017,2]
[404412194,1770117045496,-839.0,0.0001704,2]
[404412195,1770117045505,-1265.13779333,0.00017096,2]
[404412196,1770117045515,-200.0,0.00017132,2]
[404412197,1770117045524,-5888.0,0.00017151,2]
[404412198,1770117045586,-1100.0,0.00017178,7]
[404412199,1770117045595,-1265.13779333,0.00017178,2]
[404412200,1770117045605,-334.5472959,0.00017218,2]
[404412201,1770117045614,-1265.13779333,0.00017233,2]
[404412202,1770117045623,-1000.0,0.0001726,2]
[404412203,1770117045632,-1265.13779333,0.00017315,2]
[404412204,1770117045641,-150.0,0.00017318,2]
[404412205,1770117045651,-180.32,0.00017368,2]
[404412206,1770117045660,-360.3,0.00017368,2]
[404412207,1770117045669,-180.32,0.00017368,2]
[404412208,1770117045678,-180.29,0.00017368,2]
[404412209,1770117045688,-360.2,0.00017368,2]
[404412210,1770117045697,-1265.13779333,0.0001737,2]
[404412211,1770117045706,-213.0,0.00017373,2]
[404412212,1770117045715,-200.0,0.00017373,2]
[404412213,1770117045724,-272.463,0.00017373,2]
[404412214,1770117045733,-171.889,0.00017373,2]
[404412215,1770117045742,-150.632,0.00017373,2]
[404412216,1770117045751,-170.0,0.00017373,2]
[404412217,1770117045760,-150.04,0.00017373,2]
[404412218,1770117045769,-150.0,0.00017373,2]
[404412219,1770117045779,-150.0,0.00017373,2]
[404412220,1770117045788,-151.0,0.00017373,2]
[404412221,1770117045798,-150.08,0.00017373,2]
[404412222,1770117045808,-469.55,0.00017374,2]
[404412223,1770117045818,-469.55,0.00017374,2]
[404412224,1770117045828,-469.55,0.00017374,2]
[404412225,1770117045837,-469.55,0.00017374,2]
[404412226,1770117045846,-469.55,0.00017374,2]
[404412227,1770117045855,-469.55,0.00017374,2]
[404412228,1770117045864,-469.67,0.00017374,2]
[404412229,1770117045874,-469.55,0.00017374,2]
[404412230,1770117045885,-469.67,0.00017374,2]
[404412231,1770117045895,-328.2844758,0.000174,7]
[404412232,1770117045904,-1500.0,0.00017452,7]
[404412233,1770117045914,-1265.13779333,0.00017452,2]
[404412234,1770117045922,-5888.0,0.00017486,2]
[404412235,1770117045931,-186.26584138,0.00017493,2]
[404412236,1770117045940,-194.72792766,0.00017493,2]
[404412237,1770117045949,-200.0,0.00017493,2]
[404412238,1770117045961,-160.0,0.000175,7]
[404412239,1770117045970,-1500.0,0.000175,2]
[404412240,1770117045979,-1265.13779333,0.00017507,2]
[404412241,1770117045988,-5888.0,0.00017528,2]
[404412242,1770117046000,-200.0,0.00017529,2]
[404412243,1770117046009,-1000.0,0.00017534,2]
[404412244,1770117046018,-1265.13779333,0.00017589,2]
[404412245,1770117046027,-900.0,0.000176,6]
[404412246,1770117046038,-5888.0,0.0001762,2]
[404412247,1770117046047,-293.9372811,0.0001764,2]
[404412248,1770117046057,-1265.13779333,0.00017644,2]
[404412249,1770117046066,-900.0,0.000177,6]
[404412250,1770117046076,-1000.0,0.00017724,7]
[404412251,1770117046085,-457.87,0.00017725,19]
[404412252,1770117046094,-800.0,0.00017726,7]
[404412253,1770117046104,-1265.13779333,0.00017726,2]
[404412254,1770117046112,-150.0,0.0001773,2]
[404412255,1770117046122,-157.95285948,0.00017737,2]
[404412256,1770117046131,-150.0,0.00017745,2]
[404412257,1770117046140,-150.0,0.00017745,2]
[404412258,1770117046149,-150.0,0.00017749,2]
[404412259,1770117046158,-150.01369725,0.00017751,2]
[404412260,1770117046167,-1000.0,0.00017768,2]
[404412261,1770117046176,-5888.0,0.00017775,2]
[404412262,1770117046185,-1265.13779333,0.00017781,2]
[404412263,1770117046194,-267.46801116,0.00017791,2]
[404412264,1770117046203,-1000.0,0.00017792,2]
[404412265,1770117046212,-182.69419301,0.00017797,2]
[404412266,1770117046221,-1000000.0,0.000178,2]
[404412267,1770117046230,-10140.7131,0.000178,2]
[404412268,1770117046239,-33292.3487,0.000178,2]